Cogmind - Beta 14 @@@ ROGUE MODE // 2024.08.17 @ 01:44:30 Player: Lillith Result: Destroyed by D6-OTM(R) with Subdweller Laser Performance ------------- Evolutions (0) 0 Regions Visited (3) 600 Robots Destroyed (19) 95 Value Destroyed (594) 594 Prototype IDs (0) 0 Alien Tech Used (0) 0 Bonus (21) 21 TOTAL SCORE: 1310 Bonus ------- Follower Combat Kills 21 Cogmind --------- Core Integrity 0/250 Matter 207/300 Energy 100/100 System Corruption 2% Temperature Cool (6) Movement Walking (120) Location -10/Subcaves Parts ------- > --- POWER (1) -------- (None) > --- PROPULSION (2) --- Aluminum Leg Aluminum Leg > --- UTILITY (2) ------ Medium Storage Unit > --- WEAPON (2) ------- Light Cannon > --- INVENTORY (10) --- Compact Wheel High-capacity Matter Pod (155) Subdweller Laser Assault Rifle Light Cannon Mining Claw Peak State ------------ > --- POWER ------------ Light Nuclear Core > --- PROPULSION ------- Aluminum Leg Aluminum Leg > --- UTILITY ---------- Medium Storage Unit Structural Scanner > --- WEAPON ----------- Assault Rifle Light Cannon > --- INVENTORY -------- Light Ion Engine Aluminum Leg Aluminum Leg Compact Wheel High-capacity Matter Pod Light Cannon Light Cannon Grenade Launcher Grenade Launcher Mining Claw [Rating: 10] Favorites ----------- Power Light Nuclear Core Engine Ion Engine Power Core Light Nuclear Core Propulsion Aluminum Leg Leg Aluminum Leg Utility Structural Scanner Device Structural Scanner Storage Medium Storage Unit Weapon Light Cannon Energy Gun EM Pulse Gun Ballistic Gun Assault Rifle Ballistic Cannon Light Cannon Launcher Grenade Launcher Build | -11 -10 -10 -10 ------- Run | Yrd Mat Min Sub Slots Evolved . | . . . . Power . | . . . . Propulsion . | . . . . Utility . | . . . . Weapon . | . . . . Parts Attached 21 | 6 8 5 2 Power 3 | 1 1 . 1 Engine 2 | 1 . . 1 Core 1 | . 1 . . Reactor . | . . . . Propulsion 6 | 2 2 1 1 Treads . | . . . . Leg 6 | 2 2 1 1 Wheel . | . . . . Hover . | . . . . Flight . | . . . . Utility 3 | 1 2 . . Device 1 | . 1 . . Storage 2 | 1 1 . . Processor . | . . . . Hackware . | . . . . Protection . | . . . . Artifact . | . . . . Weapon 9 | 2 3 4 . Energy Gun 2 | 2 . . . Energy Cannon . | . . . . Ballistic Gun 1 | . 1 . . Ballistic Cannon 3 | . 1 2 . Launcher 3 | . 1 2 . Special Weapon . | . . . . Impact Weapon . | . . . . Slashing Weapon . | . . . . Piercing Weapon . | . . . . Special Melee Weapon . | . . . . Unidentified Prototypes . | . . . . Parts Lost 7 | . . 3 4 Power 2 | . . . 2 Propulsion 1 | . . 1 . Utility 1 | . . . 1 Weapon 3 | . . 2 1 Highest Loss Streak 4 | . . 3 4 To Critical Strikes . | . . . . Average Slot Usage (%) 99 | . 99 99 98 Engine 4 | . 10 . . Core 8 | . 3 14 13 Leg 27 | . 28 27 28 Device 13 | . 13 14 13 Storage 14 | . 14 14 14 Energy Gun 5 | . 11 . . Ballistic Gun 5 | . 9 3 . Ballistic Cannon 17 | . 7 23 27 Peak Build Rating 10 | 6 10 10 9 Average Rating 8 | 3 7 9 8 On Entrance 6 | . 6 10 9 Naked Turns . | . . . . Heaviest Build 22 | 14 21 22 22 Greatest Support 20 | 20 20 20 20 Greatest Overweight (x) 2 | 1 1 2 1 Average Overweight (x) . | . . 1 1 Largest Inventory Capacity 10 | 8 10 10 10 Average Capacity 9 | 7 9 10 10 Most Carried 10 | 5 10 10 8 Average Carried 7 | 3 8 7 7 Final Capacity 10 | 8 10 10 10 Final Carried 10 | 4 10 7 6 Class Distribution -------------------- 100% | Mutant Dominant Class ---------------- Mutant | -10/Materials Mutant | -10/Mines Mutant | -10/Subcaves Resources | -11 -10 -10 -10 ----------- Run | Yrd Mat Min Sub Matter Collected 895 | 195 369 224 107 Remotely . | . . . . Salvage Created 438 | . 407 31 . Parts 34 | . 32 2 . Haulers Intercepted 1 | . 1 . . Recyclers Shooed 1 | . 1 . . Parts Field Recycled . | . . . . Retrieved Matter . | . . . . Parts Self-Destructed . | . . . . Prevented . | . . . . Kills | -11 -10 -10 -10 ------- Run | Yrd Mat Min Sub Combat Hostiles Destroyed 16 | . 11 4 1 Guns 4 | . 4 . . Cannons 6 | . 4 1 1 AOE 6 | . 3 3 . Classes Destroyed 7 | . 5 1 1 Worker 1 | . 1 . . Hauler 1 | . 1 . . Operator 1 | . 1 . . Swarmer 3 | . 3 . . Grunt 10 | . 8 2 . Demolisher 2 | . . 2 . Subdweller 1 | . . . 1 Best Kill Streak 5 | . 5 4 1 Combat Bots Only 4 | . 4 4 1 Max Kills in Single Turn 2 | . 2 1 1 Gunslinging . | . . . . Exploded 2 | . 2 1 . Melee . | . . . . Uniques/NPCs Destroyed . | . . . . Combat | -11 -10 -10 -10 -------- Run | Yrd Mat Min Sub Hostile Shots Fired 81 | . 29 23 29 Missed 25 | . 7 6 12 Damage Taken 1093 | . 255 474 364 Core 263 | . 56 141 66 Absorbed by Shields . | . . . . Core Remaining (%) 100 | 100 . . . Volleys Fired 58 | . 35 11 12 Largest 2 | . 2 2 2 Hottest 80 | . 80 70 70 Shots Fired 98 | . 63 13 22 Gun 37 | . 37 . . Cannon 50 | . 24 4 22 Launcher 11 | . 2 9 . Special . | . . . . Kinetic 79 | . 53 4 22 Thermal . | . . . . Explosive 11 | . 2 9 . Electromagnetic 8 | . 8 . . Robot Hit Streak 13 | . 6 7 13 Robot Miss Streak 4 | . 3 4 1 Penetration Max . | . . . . Secondary Targets . | . . . . Shots Hit Robots 59 | . 35 9 15 Core Hits 35 | . 21 12 2 Critical Kills . | . . . . Critical Parts Destroyed . | . . . . Critical Strikes . | . . . . Melee Attacks . | . . . . Impact . | . . . . Slashing . | . . . . Piercing . | . . . . Sneak Attacks . | . . . . Combat Hostiles . | . . . . Follow-up Attacks . | . . . . Damage Inflicted 1216 | . 779 168 269 Guns 305 | . 305 . . Cannons 575 | . 271 35 269 Explosions 333 | . 203 130 . Melee . | . . . . Ramming 3 | . . 3 . Kinetic 823 | . 519 35 269 Thermal . | . . . . Explosive 333 | . 203 130 . Electromagnetic 57 | . 57 . . Impact . | . . . . Slashing . | . . . . Piercing . | . . . . Highest Corruption 2 | . 2 2 2 Average Corruption 2 | . 2 2 2 Corruption Purged . | . . . . Corruption Blocked . | . . . . Effects 26 | . 9 10 7 Message Errors 5 | . 4 . 1 Matter Fused 8 | . 2 5 1 Heat Flow Errors 3 | . 1 2 . Energy Discharges 1 | . . . 1 Parts Rejected 1 | . . . 1 Data Loss (minor) 5 | . 2 2 1 Alerts 1 | . . . 1 Weapon Failures 2 | . . 1 1 Overload Shots . | . . . . Overflow Damage . | . . . . Projectiles . | . . . . Explosions . | . . . . Melee . | . . . . Knockbacks 9 | . 5 1 3 Impact . | . . . . Kinetic 9 | . 5 1 3 Secondary . | . . . . Self-Inflicted Damage . | . . . . Shots . | . . . . Rammed . | . . . . Targets Rammed 1 | . . 1 . Kicked 1 | . . 1 . Crushed . | . . . . Highest Temperature 165 | . 165 148 . Average Temperature 32 | . 25 44 . Received Heat Transfer 243 | . 120 63 60 Siege Activations . | . . . . Robots Corrupted . | . . . . Combat Hostiles . | . . . . Parts Fried . | . . . . Impact Corruptions . | . . . . Robots Melted . | . . . . Combat Hostiles . | . . . . Parts Melted . | . . . . Heat Transferred . | . . . . Parts Sabotaged . | . . . . Parts Stolen . | . . . . Parts Stripped . | . . . . Power Chain Reactions . | . . . . Alert | -11 -10 -10 -10 ------- Run | Yrd Mat Min Sub Peak Influence 220 | . 220 179 . Initial 27 | . . 27 . Average 63 | . 66 65 . Maximum Alert Level 1 | . 1 . . Low Security (%) 98 | 100 97 100 . Level 1 1 | . 2 . . Level 2 . | . . . . Level 3 . | . . . . Level 4 . | . . . . Level 5 . | . . . . High Security . | . . . . Max Security . | . . . . Squads Dispatched 2 | . 2 . . Investigation . | . . . . Extermination . | . . . . Reinforcement 2 | . 2 . . Assault . | . . . . Garrison . | . . . . Intercept . | . . . . Searches Triggered . | . . . . Construction Impeded . | . . . . Haulers Reinforced . | . . . . Active Scanning Responses . | . . . . Cargo Convoy Interrupts . | . . . . Stealth | -11 -10 -10 -10 --------- Run | Yrd Mat Min Sub Distress Signals 3 | . 3 . . Communications Jammed . | . . . . Distress Signals . | . . . . Times Spotted 35 | . 23 10 2 Peak Tracking Total 5 | . 5 4 2 Tactical Retreats 2 | . 1 1 . Traps | -11 -10 -10 -10 ------- Run | Yrd Mat Min Sub Traps Triggered 1 | . 1 . . Indirectly . | . . . . Trap Hack Attempts . | . . . . Triggered . | . . . . Disarmed . | . . . . Reprogrammed . | . . . . Reused . | . . . . Traps Extracted . | . . . . Installed . | . . . . Triggered . | . . . . Machines | -11 -10 -10 -10 ---------- Run | Yrd Mat Min Sub Machines Disabled 2 | . 1 1 . Max in Single Turn 1 | . 1 . . Machines Repaired . | . . . . Machines Dismantled . | . . . . Machines Sabotaged . | . . . . Overloaded Fab Kills . | . . . . Hacking | -11 -10 -10 -10 --------- Run | Yrd Mat Min Sub Machines Accessed 5 | . 5 . . Terminals 3 | . 3 . . Fabricators . | . . . . Repair Stations . | . . . . Recycling Units 2 | . 2 . . Scanalyzers . | . . . . Garrison Access . | . . . . Total Hacks 15 | . 15 . . Successful 9 | . 9 . . Failed 5 | . 5 . . Catastrophic 1 | . 1 . . Database Lockouts 1 | . 1 . . Manual 13 | . 13 . . Terminals 12 | . 12 . . Fabricators . | . . . . Repair Stations . | . . . . Recycling Units 3 | . 3 . . Scanalyzers . | . . . . Garrison Access . | . . . . Terminal Hacks 2 | . 2 . . Robot Analysis 1 | . 1 . . Locate Traps 1 | . 1 . . Fabricator Hacks . | . . . . Repair Station Hacks . | . . . . Recycling Unit Hacks 2 | . 2 . . Retrieve Components 2 | . 2 . . Scanalyzer . | . . . . Garrison Access Hacks . | . . . . Unauthorized Hacks 5 | . 5 . . Terminals 5 | . 5 . . Botnet 2 | . 2 . . Skim 3 | . 3 . . Fabricators . | . . . . Repair Stations . | . . . . Recycling Units . | . . . . Scanalyzers . | . . . . Garrison Access . | . . . . Data Cores Recovered . | . . . . Used . | . . . . Hacking Detections 3 | . 3 . . Full Trace Events . | . . . . Feedback Events . | . . . . Feedback Blocked . | . . . . Robot Schematics Acquired . | . . . . Robots Built . | . . . . Authchips . | . . . . Time . | . . . . Total Robot Build Rating . | . . . . Part Schematics Acquired . | . . . . Parts Built . | . . . . Authchips . | . . . . Time . | . . . . Total Part Build Rating . | . . . . Parts Repaired . | . . . . Time . | . . . . Parts Recycled . | . . . . Recycled Matter . | . . . . Retrieved Matter . | . . . . Retrieved Components 12 | . 12 . . Parts Scanalyzed . | . . . . Part Schematics Acquired . | . . . . Parts Damaged . | . . . . Bothacking | -11 -10 -10 -10 ------------ Run | Yrd Mat Min Sub Used RIF Installer . | . . . . Robots Hacked . | . . . . Non-combat . | . . . . Combat . | . . . . Robot Hacks Applied . | . . . . Relay Couplers Released . | . . . . Fabnet Peak Effective % . | . . . . Robots Rewired . | . . . . Allies Hacked . | . . . . Hacks Repelled . | . . . . Allies | -11 -10 -10 -10 -------- Run | Yrd Mat Min Sub Total Allies 1 | . . 1 . Largest Group 1 | . . 1 . Highest-Rated Group 31 | . . 31 . Highest-Rated Ally 31 | . . 31 . Total Orders . | . . . . Ally Attacks 12 | . . 12 . Total Damage 182 | . . 182 . Kills 5 | . . 5 . Allies Corrupted . | . . . . Allies Melted . | . . . . Intel | -11 -10 -10 -10 ------- Run | Yrd Mat Min Sub Robot Analysis Total 1 | . 1 . . Derelict Logs Recovered 2 | . . 2 . Drone Launches . | . . . . Drone Recoveries . | . . . . Exploration | -11 -10 -10 -10 ------------- Run | Yrd Mat Min Sub Turns Passed 2379 | 59 1049 760 511 Spaces Moved 1265 | 45 598 377 245 Core 15 | 15 . . . Treads . | . . . . Legs 1250 | 30 598 377 245 Wheels . | . . . . Hover . | . . . . Flight . | . . . . Fastest Speed 50 | 50 120 190 190 Average Speed 167 | 102 149 190 190 Slowest Speed 260 | 190 190 260 190 Overloaded Moves . | . . . . Propulsion Burnouts . | . . . . Robots Hopped . | . . . . Cave-ins Triggered . | . . . . Exploration Rate (%) 43 | 4 85 57 28 Regions Visited 3 Branch Regions 2 Pre-discovered Areas . | . . . . Known Exits Taken . | . . . . Unknown Exits Taken 3 | 1 1 1 . Scrap Searched 1 | . . 1 . Spaces Dug . | . . . . Terrain Destroyed 27 | . 14 13 . Melee . | . . . . Projectile . | . . . . AOE 27 | . 14 13 . Terrain Rammed . | . . . . Walls Destroyed . | . . . . Machines Disabled . | . . . . Actions | -11 -10 -10 -10 --------- Run | Yrd Mat Min Sub Total 1423 | 55 695 405 268 Wait 58 | . 38 12 8 Move 1262 | 44 597 376 245 Hop . | . . . . Pick Up 15 | 5 9 . 1 Fast Attach 7 | 5 2 . . Attach 6 | 1 . 3 2 Detach . | . . . . Swap 8 | . 6 2 . Drop 8 | . 8 . . Fire 58 | . 35 11 12 Melee . | . . . . Ram . | . . . . Kick 1 | . . 1 . Crush . | . . . . Escape Stasis . | . . . . Rewire . | . . . . Trap . | . . . . Miscellaneous . | . . . . Route ------- -11/Scrapyard -10/Materials (discovered 4 exits: [*Mat x2] / [*Min] / [Sub]) -10/Mines (discovered 2 exits: [*Mat] / [*Sub]) -10/Subcaves History --------- Turn | Location | Event 11 | -11/Scrapyard | Discovered new exit (range 14) 60 | -11/Scrapyard | Entered Materials 75 | -10/Materials | Discovered new exit (range 9) 189 | -10/Materials | Central database locked down 309 | -10/Materials | Build established: Mutant 345 | -10/Materials | Discovered new exit (range 14) 586 | -10/Materials | Discovered new exit (range 10) 847 | -10/Materials | Discovered new exit (range 15) 1109 | -10/Materials | Entered Mines 1112 | -10/Mines | Received a Mining Laser from a helpful Derelict 1261 | -10/Mines | Discovered new exit (range 7) 1266 | -10/Mines | Assembled infested the area 1335 | -10/Mines | Core integrity fell below 50% 1374 | -10/Mines | Lost 3 parts (1n2w) 1467 | -10/Mines | Discovered new exit (range 15) 1533 | -10/Mines | Learned location of 1 exit from Materials 1869 | -10/Mines | Entered Subcaves 2334 | -10/Subcaves | Ambushed by Subdwellers from Twisted Machinery 2336 | -10/Subcaves | Core integrity fell below 20% 2380 | -10/Subcaves | Destroyed by D6-OTM(R) with Subdweller Laser Last Messages --------------- 02284_ System corrupted: IFF burst signal emitted. 02291_ Acquired Sub. Laser. 02292_ Acquired 41 matter. 02309_ Acquired 10 matter. 02318_ System corrupted: Matter fused (-9). 02330_ Acquired 9 matter. 02334_ D6-OTM(R) emerges from the Twisted Machinery. 02353_ System corrupted: Lgt. Cannon jammed. 02356_ KS-7E4(R) knocked back. 02358_ Lgt. Nuclear Core destroyed. 02360_ System corrupted: Aluminum Leg rejected. 02361_ KS-7E4(R) knocked back. 02364_ Lgt. Ion Engine destroyed. 02370_ KS-7E4(R) knocked back. 02370_ Structural Scanner destroyed. 02371_ Subatomizers dissect the Aluminum Leg. 02378_ Lgt. Cannon destroyed. 02379_ KS-7E4(R) destroyed. Map ----- +----------------------------------------------------+ | ?????????????????????????????????????????????????? | | ?????????????????????????????????????????????????? | | ?????????????????????????????????????????????????? | | ?????????????????????????????????????????????????? | | ?????????????????????????????????????????????????? | | ?????????????????????????????????????????????????? | | ?????????????????????????????????????????????????? | | ?????????????????????????????????????????????????? | | ?????????????????????????????????????????????????? | | ?????????????????????????????????????????????????? | | ?????????????????????????????????????????????????? | | ?????????????????????????????????????????????????? | | ????????????????????????????? ##??????????????? | | ????????????????????????????? ##??????????????? | | ???????????????????????????? ###?????????????? | | ???????????????????????????? ####????????????? | | ??????????? ?????????????? ###????????????? | | ???????????## """"" ##?????? ##????????????? | | ???????????## " " ###???## ##????????????? | | ????????????## """##???## ###????????????? | | ????????????## ##### ###????????????? | | ????????????## ##### ##????????????? | | ????????????## % ### ##????????????? | | ????????????### %&& % ##????????????? | | ?????????????## ##????????????? | | ????????????????? ##@ ##????????????? | | ????????????????# ## ###R ####????????????? | | ???????????????######% ## ###??????????????? | | ????????????###### ## ###??????????????? | | ???????????###### ## ##???????????????? | | ?????????##### ####?????????????? | | ????????##### ### ##?????????????? | | ????????### ### ## ##?????????????? | | ????????## ## ######?????????????? | | ????????## #####?????????????? | | ???????##### %#### ###?????????????? | | ???????##" % "## ### ##?????????????? | | ???????## ???? ## ### ##?????????????? | | ??????? # ????????## ## ####?????????????? | | ??????? #"????????### ####?????????????? | | ??????????????????### ###??????????????? | | ??????????????????## ##??????????????? | | ??????????????????## #### ###??????????????? | | ??????????????????######## ###??????????????? | | ??????????????????### ##??????????????? | | ???????????????????### #####??????????????? | | ???????????????????####### ######??????????????? | | ????????????????????###### ####?????????????????? | | ???????????????????????### ##??????????????????? | | ?????# ???????????????## ##??????????????????? | +----------------------------------------------------+ Best States ------------- Heat Dissipation 25 Energy Generation 14 Energy Capacity 250 Matter Stores 300 Matter Capacity 300 Sight Range 16 Terrain Scan Density 10 Evasion (%) 55 Item Schematics ----------------- None Robot Schematics ------------------ None Fabricated ------------ Nothing Alien Tech Used ----------------- None Achievements -------------- I Survived The Infestation Challenges ------------ None Game ------ Seed FluxAuthchipFlamer Manual? 0 Play Time 00:15:13 Cumulative 22.5 hours Start 2024.08.17 @ 01:31:08 End 2024.08.17 @ 01:44:30 Sessions 1 Manual Loads 0 Difficulty Rogue Special Mode None Game No. 40 Rogue 40 Adventurer 0 Explorer 0 Win Type - Total 0 Types 0/0/0/0/0/0/0/0/0 Lore% 30 Gallery% 24 Achievement% 22 Wizard Run 0 Options --------- Layout 2 ASCII 0 Keyboard 1 Movement Arrows Keybinds 0 Fullscreen 2 Font 32/SmallcapsGlow Map View 50x44 Zoom Use 0% Tactical HUD 1 Map Filters NONE Filters NONE Steam 1 RUN: 890a1355-762b-439e-b0f7-8eb95c2e4907